[Event "*** Titled Tuesday Blitz"]
[Site "Chess.com"]
[Date "2020.10.27"]
[Round "5"]
[White "Jumbo"]
[Black "YoungUzbek"]
[Result "1-0"]
[WhiteElo "2865"]
[BlackElo "2770"]
[TimeControl "180+1"]
[EndTime "10:57:13 PDT"]
[Termination "Jumbo won by resignation"]

1. d4 {[%clk 0:03:00.9]} 1... Nf6 {[%clk 0:02:59.1]} 2. c4 {[%clk 0:02:59.9]}
2... e6 {[%clk 0:02:58.4]} 3. Nf3 {[%clk 0:03:00.1]} 3... d5 {[%clk 0:02:58.2]}
4. Nc3 {[%clk 0:02:58.5]} 4... c6 {[%clk 0:02:58.2]} 5. e3 {[%clk 0:02:57.6]}
5... Nbd7 {[%clk 0:02:57.6]} 6. Qc2 {[%clk 0:02:57.9]} 6... a6 {[%clk
0:02:54.3]} 7. b3 {[%clk 0:02:56]} 7... Bb4 {[%clk 0:02:53.4]} 8. Bd2 {[%clk
0:02:55.1]} 8... O-O {[%clk 0:02:52.5]} 9. Bd3 {[%clk 0:02:55.5]} 9... dxc4
{[%clk 0:02:52]} 10. bxc4 {[%clk 0:02:53.8]} 10... c5 {[%clk 0:02:51.2]} 11. O-O
{[%clk 0:02:53.5]} 11... cxd4 {[%clk 0:02:50.9]} 12. exd4 {[%clk 0:02:54.4]}
12... b6 {[%clk 0:02:38.7]} 13. Rad1 {[%clk 0:02:40.1]} 13... Bb7 {[%clk
0:02:37.1]} 14. Ne5 {[%clk 0:02:38.2]} 14... Qc7 {[%clk 0:02:30]} 15. Rfe1
{[%clk 0:02:30.4]} 15... Bd6 {[%clk 0:02:17]} 16. Nxd7 {[%clk 0:02:11.5]} 16...
Qxd7 {[%clk 0:02:09.8]} 17. Bg5 {[%clk 0:02:11.9]} 17... Kh8 {[%clk 0:01:28.6]}
18. c5 {[%clk 0:01:49.7]} 18... bxc5 {[%clk 0:01:18.9]} 19. dxc5 {[%clk
0:01:50.6]} 19... Qc6 {[%clk 0:01:14.7]} 20. Be4 {[%clk 0:01:31.3]} 20... Nxe4
{[%clk 0:00:52.6]} 21. Nxe4 {[%clk 0:01:30.3]} 21... Bc7 {[%clk 0:00:39.6]} 22.
f3 {[%clk 0:01:15.3]} 22... f6 {[%clk 0:00:39.7]} 23. Bh4 {[%clk 0:01:12.3]}
23... Rad8 {[%clk 0:00:37.7]} 24. Rxd8 {[%clk 0:00:55.7]} 24... Bxd8 {[%clk
0:00:37.7]} 25. Nd6 {[%clk 0:00:53.9]} 25... e5 {[%clk 0:00:23.6]} 26. Rb1
{[%clk 0:00:45]} 26... Ba8 {[%clk 0:00:17.3]} 27. Qc4 {[%clk 0:00:23.7]} 27...
g5 {[%clk 0:00:15.3]} 28. Bf2 {[%clk 0:00:20.6]} 28... Be7 {[%clk 0:00:15.4]}
29. Nf5 {[%clk 0:00:16.9]} 29... Bd8 {[%clk 0:00:10.2]} 30. Rb8 {[%clk
0:00:15.3]} 30... Qd7 {[%clk 0:00:06.7]} 31. Nd6 {[%clk 0:00:12.6]} 31... Bc6
{[%clk 0:00:06]} 32. Qxa6 {[%clk 0:00:06.9]} 32... Kg7 {[%clk 0:00:05.9]} 33.
Qc4 {[%clk 0:00:06.4]} 33... Bc7 {[%clk 0:00:03.8]} 34. Rxf8 {[%clk 0:00:05.6]}
34... Kxf8 {[%clk 0:00:04.7]} 35. Qd3 {[%clk 0:00:05.8]} 35... f5 {[%clk
0:00:02.1]} 36. h4 {[%clk 0:00:05.6]} 36... e4 {[%clk 0:00:02]} 37. fxe4 {[%clk
0:00:05.3]} 37... fxe4 {[%clk 0:00:02.7]} 38. Qd4 {[%clk 0:00:05.8]} 38... Bxd6
{[%clk 0:00:03.1]} 39. cxd6 {[%clk 0:00:06.6]} 39... Qe6 {[%clk 0:00:03.5]} 40.
Qh8+ {[%clk 0:00:06.2]} 40... Kf7 {[%clk 0:00:03.8]} 41. Qxh7+ {[%clk
0:00:06.3]} 41... Ke8 {[%clk 0:00:04.7]} 42. hxg5 {[%clk 0:00:04.6]} 42... e3
{[%clk 0:00:05.2]} 43. Qh5+ {[%clk 0:00:04.8]} 43... Kd7 {[%clk 0:00:05.3]} 44.
Bg3 {[%clk 0:00:05.4]} 44... e2 {[%clk 0:00:05.5]} 45. Qh7+ {[%clk 0:00:05.9]}
45... Ke8 {[%clk 0:00:05]} 46. Qe7+ {[%clk 0:00:06]} 46... Qxe7 {[%clk
0:00:05.4]} 47. dxe7 {[%clk 0:00:06.9]} 47... Kxe7 {[%clk 0:00:06]} 48. Kf2
{[%clk 0:00:07.2]} 48... Bb5 {[%clk 0:00:06.9]} 49. Bf4 {[%clk 0:00:07.3]} 49...
Ba6 {[%clk 0:00:07.8]} 50. Bd2 {[%clk 0:00:07.7]} 50... Kf7 {[%clk 0:00:08.7]}
51. Kg3 {[%clk 0:00:06.8]} 51... Kg6 {[%clk 0:00:09.6]} 52. Kf4 {[%clk
0:00:07.3]} 52... Bb7 {[%clk 0:00:08.6]} 53. g3 {[%clk 0:00:07.7]} 53... Ba6
{[%clk 0:00:08.8]} 54. a4 {[%clk 0:00:08.2]} 54... Bc4 {[%clk 0:00:07.7]} 55. a5
{[%clk 0:00:08.5]} 55... Ba6 {[%clk 0:00:07.8]} 56. Ke5 {[%clk 0:00:08.8]} 56...
Kh5 {[%clk 0:00:08.1]} 57. Kd6 {[%clk 0:00:08.8]} 57... Bd3 {[%clk 0:00:07]} 58.
Kc7 {[%clk 0:00:08.5]} 58... Kg4 {[%clk 0:00:07.4]} 59. Kb6 {[%clk 0:00:08.7]}
59... Kxg3 {[%clk 0:00:07.5]} 60. a6 {[%clk 0:00:09.2]} 60... Kg4 {[%clk
0:00:05.8]} 61. a7 {[%clk 0:00:09.2]} 61... Be4 {[%clk 0:00:06.3]} 62. g6 {[%clk
0:00:09.8]} 62... Kf5 {[%clk 0:00:05.4]} 63. g7 {[%clk 0:00:09.9]} 1-0

[Event "*** Titled Tuesday Blitz"]
[Site "Chess.com"]
[Date "2020.10.27"]
[Round "5"]
[White "Snegokhod"]
[Black "XDPS"]
[Result "0-1"]
[WhiteElo "2441"]
[BlackElo "2745"]
[TimeControl "180+1"]
[EndTime "10:57:15 PDT"]
[Termination "XDPS won by checkmate"]

1. e4 {[%clk 0:03:00.9]} 1... c5 {[%clk 0:02:56.2]} 2. Nf3 {[%clk 0:03:00.9]}
2... e6 {[%clk 0:02:53.2]} 3. d3 {[%clk 0:02:59.7]} 3... Nc6 {[%clk 0:02:50.4]}
4. g3 {[%clk 0:02:59.5]} 4... Nf6 {[%clk 0:02:41.6]} 5. Bg2 {[%clk 0:02:59.2]}
5... e5 {[%clk 0:02:38.1]} 6. O-O {[%clk 0:02:58.7]} 6... Be7 {[%clk 0:02:38.7]}
7. c4 {[%clk 0:02:49.9]} 7... O-O {[%clk 0:02:37.3]} 8. Nc3 {[%clk 0:02:49.9]}
8... d6 {[%clk 0:02:37.2]} 9. Nh4 {[%clk 0:02:46.7]} 9... Ne8 {[%clk 0:02:34.4]}
10. Nf5 {[%clk 0:02:46.1]} 10... Nd4 {[%clk 0:02:25.8]} 11. Nxe7+ {[%clk
0:02:44.8]} 11... Qxe7 {[%clk 0:02:25.9]} 12. Nd5 {[%clk 0:02:42.6]} 12... Qd8
{[%clk 0:02:25.8]} 13. f4 {[%clk 0:02:38.4]} 13... Nc7 {[%clk 0:02:23.9]} 14.
fxe5 {[%clk 0:02:33]} 14... dxe5 {[%clk 0:02:22.7]} 15. Bd2 {[%clk 0:02:27.1]}
15... b6 {[%clk 0:02:05.8]} 16. b4 {[%clk 0:02:24.7]} 16... Nce6 {[%clk
0:02:05.9]} 17. b5 {[%clk 0:02:17.4]} 17... Nc7 {[%clk 0:01:57.4]} 18. a4 {[%clk
0:02:14.9]} 18... Ne8 {[%clk 0:01:54.8]} 19. a5 {[%clk 0:02:13]} 19... Bb7
{[%clk 0:01:55.2]} 20. a6 {[%clk 0:02:06.5]} 20... Bxd5 {[%clk 0:01:55.2]} 21.
exd5 {[%clk 0:02:05.2]} 21... Nd6 {[%clk 0:01:55.8]} 22. Ra2 {[%clk 0:01:51.6]}
22... f5 {[%clk 0:01:55.6]} 23. Be3 {[%clk 0:01:46.4]} 23... Qf6 {[%clk
0:01:49.8]} 24. Raf2 {[%clk 0:01:45.1]} 24... Rae8 {[%clk 0:01:49.2]} 25. Qd2
{[%clk 0:01:25]} 25... h6 {[%clk 0:01:47.9]} 26. Bh3 {[%clk 0:01:21.3]} 26... e4
{[%clk 0:01:37.4]} 27. Bg2 {[%clk 0:01:18.4]} 27... exd3 {[%clk 0:00:40.3]} 28.
Qxd3 {[%clk 0:01:17.1]} 28... Rxe3 {[%clk 0:00:40.8]} 29. Qxe3 {[%clk
0:01:15.8]} 29... Nxc4 {[%clk 0:00:41.3]} 30. Qf4 {[%clk 0:01:03.3]} 30... Nd6
{[%clk 0:00:30.7]} 31. Re1 {[%clk 0:00:58.3]} 31... N4xb5 {[%clk 0:00:26.6]} 32.
Re6 {[%clk 0:00:54.4]} 32... Qd8 {[%clk 0:00:22.1]} 33. Qe5 {[%clk 0:00:45.5]}
33... Nc4 {[%clk 0:00:18.4]} 34. Qf4 {[%clk 0:00:43.5]} 34... Nd4 {[%clk
0:00:18.4]} 35. Re1 {[%clk 0:00:36.3]} 35... Nd6 {[%clk 0:00:18.1]} 36. Rd2
{[%clk 0:00:20.1]} 36... Qf6 {[%clk 0:00:17]} 37. Rd3 {[%clk 0:00:17.3]} 37...
g5 {[%clk 0:00:14.6]} 38. Qe5 {[%clk 0:00:14.5]} 38... Qxe5 {[%clk 0:00:14.2]}
39. Rxe5 {[%clk 0:00:14.5]} 39... Kf7 {[%clk 0:00:14.8]} 40. Rde3 {[%clk
0:00:14.2]} 40... Re8 {[%clk 0:00:10.1]} 41. Rxe8 {[%clk 0:00:14.2]} 41... Nxe8
{[%clk 0:00:11]} 42. d6 {[%clk 0:00:13.4]} 42... Nxd6 {[%clk 0:00:11.3]} 43.
Bd5+ {[%clk 0:00:14.1]} 43... Kf6 {[%clk 0:00:11.8]} 44. Kf2 {[%clk 0:00:12.3]}
44... c4 {[%clk 0:00:10.6]} 45. Rc3 {[%clk 0:00:11.7]} 45... b5 {[%clk
0:00:10.3]} 46. Ke3 {[%clk 0:00:11.5]} 46... Ke5 {[%clk 0:00:10.1]} 47. Bg8
{[%clk 0:00:11.6]} 47... f4+ {[%clk 0:00:10.1]} 48. gxf4+ {[%clk 0:00:11.7]}
48... gxf4+ {[%clk 0:00:11]} 49. Kd2 {[%clk 0:00:11.1]} 49... Ne4+ {[%clk
0:00:11.6]} 50. Kc1 {[%clk 0:00:10.4]} 50... Nxc3 {[%clk 0:00:12.5]} 51. Kb2
{[%clk 0:00:10.3]} 51... b4 {[%clk 0:00:12.8]} 52. Bxc4 {[%clk 0:00:09.4]} 52...
f3 {[%clk 0:00:13.5]} 53. Kc1 {[%clk 0:00:07.6]} 53... f2 {[%clk 0:00:13]} 54.
Kd2 {[%clk 0:00:08]} 54... Kf4 {[%clk 0:00:09.8]} 55. h4 {[%clk 0:00:06.4]}
55... Ne4+ {[%clk 0:00:09.9]} 56. Kc1 {[%clk 0:00:03.7]} 56... Ke3 {[%clk
0:00:09.6]} 57. h5 {[%clk 0:00:02.9]} 57... Ne2+ {[%clk 0:00:08.8]} 58. Kb2
{[%clk 0:00:03.5]} 58... f1=Q {[%clk 0:00:08.7]} 59. Kb3 {[%clk 0:00:04]} 59...
Qb1+ {[%clk 0:00:08.8]} 60. Ka4 {[%clk 0:00:04]} 60... Qc2+ {[%clk 0:00:08.8]}
61. Kxb4 {[%clk 0:00:03.6]} 61... Qc3+ {[%clk 0:00:08.8]} 62. Kb5 {[%clk
0:00:04.1]} 62... Nd4+ {[%clk 0:00:09]} 63. Ka4 {[%clk 0:00:01.5]} 63... Nc5#
{[%clk 0:00:09]} 0-1

[Event "*** Titled Tuesday Blitz"]
[Site "Chess.com"]
[Date "2020.10.27"]
[Round "5"]
[White "WhiteKnight2612"]
[Black "Sharpchess22"]
[Result "0-1"]
[WhiteElo "2591"]
[BlackElo "2770"]
[TimeControl "180+1"]
[EndTime "10:57:17 PDT"]
[Termination "Sharpchess22 won by resignation"]

1. Nf3 {[%clk 0:02:50.8]} 1... Nf6 {[%clk 0:02:59.3]} 2. g3 {[%clk 0:02:45]}
2... g6 {[%clk 0:02:59.3]} 3. Bg2 {[%clk 0:02:45.9]} 3... Bg7 {[%clk 0:02:59.8]}
4. O-O {[%clk 0:02:45.2]} 4... O-O {[%clk 0:03:00.7]} 5. d4 {[%clk 0:02:44.7]}
5... d6 {[%clk 0:03:00.4]} 6. c4 {[%clk 0:02:45]} 6... Nc6 {[%clk 0:02:59.7]} 7.
Nc3 {[%clk 0:02:42.5]} 7... a6 {[%clk 0:02:59.7]} 8. d5 {[%clk 0:02:41.4]} 8...
Na5 {[%clk 0:02:56.8]} 9. Nd2 {[%clk 0:02:42.2]} 9... c5 {[%clk 0:02:56.8]} 10.
Qc2 {[%clk 0:02:42.7]} 10... Rb8 {[%clk 0:02:56.4]} 11. b3 {[%clk 0:02:43]}
11... b5 {[%clk 0:02:56]} 12. Bb2 {[%clk 0:02:43.7]} 12... e5 {[%clk 0:02:50.6]}
13. Rab1 {[%clk 0:02:36.5]} 13... Bf5 {[%clk 0:02:48.7]} 14. e4 {[%clk
0:02:35.6]} 14... Bd7 {[%clk 0:02:48.8]} 15. Nd1 {[%clk 0:02:29]} 15... Bh6
{[%clk 0:02:43.5]} 16. f4 {[%clk 0:02:25.4]} 16... Re8 {[%clk 0:02:35.3]} 17.
Bc3 {[%clk 0:02:21.5]} 17... Nb7 {[%clk 0:02:32]} 18. fxe5 {[%clk 0:02:18.2]}
18... dxe5 {[%clk 0:02:31.7]} 19. Nf3 {[%clk 0:02:18.2]} 19... Ng4 {[%clk
0:02:25.5]} 20. Qe2 {[%clk 0:02:09.2]} 20... Bg7 {[%clk 0:02:22.6]} 21. h3
{[%clk 0:02:07.5]} 21... Nh6 {[%clk 0:02:22.8]} 22. g4 {[%clk 0:02:06.8]} 22...
f6 {[%clk 0:02:20.5]} 23. Nf2 {[%clk 0:02:06.2]} 23... Nd6 {[%clk 0:02:16.5]}
24. Nd2 {[%clk 0:02:05.5]} 24... Nhf7 {[%clk 0:02:13]} 25. Nd3 {[%clk
0:02:05.5]} 25... Qb6 {[%clk 0:02:10.4]} 26. Qf2 {[%clk 0:02:04.3]} 26... Rec8
{[%clk 0:02:07]} 27. Kh2 {[%clk 0:02:02.3]} 27... a5 {[%clk 0:02:03.6]} 28. Qe3
{[%clk 0:01:54.7]} 28... Qa6 {[%clk 0:01:40.3]} 29. Nxc5 {[%clk 0:01:13.4]}
29... Qa7 {[%clk 0:01:38.3]} 30. b4 {[%clk 0:01:13.7]} 30... axb4 {[%clk
0:01:16.4]} 31. Bxb4 {[%clk 0:01:14.6]} 31... Bh6 {[%clk 0:01:12.6]} 32. Qf2
{[%clk 0:00:59.9]} 32... Bf4+ {[%clk 0:01:08.1]} 33. Kh1 {[%clk 0:00:57.3]}
33... bxc4 {[%clk 0:01:08.4]} 34. Nxd7 {[%clk 0:00:50.9]} 34... Qxd7 {[%clk
0:01:07.8]} 35. a3 {[%clk 0:00:49.4]} 35... Nb5 {[%clk 0:01:02.6]} 36. Nf3
{[%clk 0:00:34.8]} 36... c3 {[%clk 0:00:59.4]} 37. Ne1 {[%clk 0:00:22.4]} 37...
Nxa3 {[%clk 0:00:56.1]} 38. Rb3 {[%clk 0:00:17.6]} 38... c2 {[%clk 0:00:53.2]}
39. Nd3 {[%clk 0:00:17.3]} 39... c1=Q {[%clk 0:00:49.1]} 40. Nxc1 {[%clk
0:00:16.9]} 40... Rxc1 {[%clk 0:00:43.2]} 41. Rxc1 {[%clk 0:00:17]} 41... Bxc1
{[%clk 0:00:42.9]} 42. Qxf6 {[%clk 0:00:17.5]} 42... Nc2 {[%clk 0:00:36.7]} 43.
Rc3 {[%clk 0:00:17.3]} 43... Bd2 {[%clk 0:00:33.6]} 44. Rxc2 {[%clk 0:00:17]}
44... Bxb4 {[%clk 0:00:33.7]} 45. h4 {[%clk 0:00:17.3]} 45... Be7 {[%clk
0:00:33.2]} 46. Qf3 {[%clk 0:00:16.5]} 46... Bxh4 {[%clk 0:00:32.4]} 47. Bh3
{[%clk 0:00:16.1]} 47... Ng5 {[%clk 0:00:31.9]} 48. Qc3 {[%clk 0:00:16.5]} 48...
Nxe4 {[%clk 0:00:30.5]} 49. Qc4 {[%clk 0:00:15.1]} 49... Nd6 {[%clk 0:00:28.4]}
50. Qd3 {[%clk 0:00:14.5]} 50... Re8 {[%clk 0:00:27.8]} 51. g5 {[%clk
0:00:14.9]} 51... Nf5 {[%clk 0:00:28.1]} 52. d6 {[%clk 0:00:14]} 52... Bxg5
{[%clk 0:00:27.9]} 53. Qd5+ {[%clk 0:00:13.6]} 53... Qf7 {[%clk 0:00:27.1]} 54.
d7 {[%clk 0:00:09.2]} 54... Rd8 {[%clk 0:00:27.1]} 55. Qg2 {[%clk 0:00:04.8]}
55... Bf6 {[%clk 0:00:26.7]} 56. Rc8 {[%clk 0:00:04.8]} 56... Qxd7 {[%clk
0:00:25.8]} 57. Bxf5 {[%clk 0:00:05.7]} 57... Qxf5 {[%clk 0:00:24.4]} 58. Rxd8+
{[%clk 0:00:05.9]} 58... Bxd8 {[%clk 0:00:24.1]} 59. Qd5+ {[%clk 0:00:06.8]}
59... Kg7 {[%clk 0:00:24.7]} 60. Qxd8 {[%clk 0:00:07.7]} 60... Qh5+ {[%clk
0:00:25]} 61. Kg2 {[%clk 0:00:07.9]} 61... Qg4+ {[%clk 0:00:25.4]} 62. Kh1
{[%clk 0:00:08.4]} 62... Qe4+ {[%clk 0:00:25.1]} 63. Kh2 {[%clk 0:00:07.8]}
63... Qf4+ {[%clk 0:00:25.3]} 64. Kh1 {[%clk 0:00:08]} 64... Qf3+ {[%clk
0:00:25.4]} 65. Kh2 {[%clk 0:00:07.8]} 65... Qf6 {[%clk 0:00:25.8]} 66. Qe8
{[%clk 0:00:07.3]} 66... Kh6 {[%clk 0:00:25.2]} 67. Kh1 {[%clk 0:00:08.1]} 67...
Kg5 {[%clk 0:00:25.5]} 68. Kh2 {[%clk 0:00:08.5]} 68... h5 {[%clk 0:00:25.8]}
69. Qa4 {[%clk 0:00:08.6]} 69... Qf4+ {[%clk 0:00:25.3]} 70. Kh3 {[%clk
0:00:08.6]} 70... Qxa4 {[%clk 0:00:25]} 0-1

[Event "*** Titled Tuesday Blitz"]
[Site "Chess.com"]
[Date "2020.10.27"]
[Round "5"]
[White "reniite"]
[Black "dosto07"]
[Result "1/2-1/2"]
[WhiteElo "1938"]
[BlackElo "2332"]
[TimeControl "180+1"]
[EndTime "10:57:18 PDT"]
[Termination "Game drawn by repetition"]

1. e4 {[%clk 0:03:00.9]} 1... e5 {[%clk 0:02:58.4]} 2. Nf3 {[%clk 0:02:59.1]}
2... Nc6 {[%clk 0:02:58.3]} 3. Nc3 {[%clk 0:02:56.1]} 3... Nf6 {[%clk
0:02:57.1]} 4. Bb5 {[%clk 0:02:55.4]} 4... Bb4 {[%clk 0:02:56]} 5. O-O {[%clk
0:02:55.9]} 5... O-O {[%clk 0:02:54.6]} 6. d3 {[%clk 0:02:56.4]} 6... Bxc3
{[%clk 0:02:53.7]} 7. bxc3 {[%clk 0:02:56.2]} 7... d6 {[%clk 0:02:54.1]} 8. Bg5
{[%clk 0:02:56.3]} 8... Qe7 {[%clk 0:02:50.7]} 9. Re1 {[%clk 0:02:56.5]} 9...
Nd8 {[%clk 0:02:50.6]} 10. d4 {[%clk 0:02:57]} 10... Ne6 {[%clk 0:02:49.8]} 11.
Bc1 {[%clk 0:02:57.6]} 11... c6 {[%clk 0:02:49.1]} 12. Bf1 {[%clk 0:02:56.9]}
12... Qc7 {[%clk 0:02:48.2]} 13. a4 {[%clk 0:02:52.4]} 13... Rd8 {[%clk
0:02:46.1]} 14. a5 {[%clk 0:02:30.5]} 14... Rb8 {[%clk 0:02:37.3]} 15. c4 {[%clk
0:02:17.8]} 15... exd4 {[%clk 0:02:27.9]} 16. Nxd4 {[%clk 0:02:16.6]} 16... Nc5
{[%clk 0:02:22.7]} 17. f3 {[%clk 0:02:11.7]} 17... Be6 {[%clk 0:02:21.5]} 18.
Bb2 {[%clk 0:02:09.4]} 18... Re8 {[%clk 0:02:13.3]} 19. Nb3 {[%clk 0:01:56.6]}
19... Nfd7 {[%clk 0:02:10.2]} 20. Qd2 {[%clk 0:01:51.7]} 20... Rbd8 {[%clk
0:02:06.1]} 21. Red1 {[%clk 0:01:48.6]} 21... Ne5 {[%clk 0:02:04.2]} 22. Qc3
{[%clk 0:01:48.7]} 22... f6 {[%clk 0:02:02.2]} 23. Ba3 {[%clk 0:01:22]} 23...
Nxb3 {[%clk 0:01:57.4]} 24. cxb3 {[%clk 0:01:20.6]} 24... c5 {[%clk 0:01:57.4]}
25. Rac1 {[%clk 0:01:14.5]} 25... Nc6 {[%clk 0:01:56.3]} 26. b4 {[%clk
0:01:11.9]} 26... b6 {[%clk 0:01:52.8]} 27. axb6 {[%clk 0:01:08.8]} 27... axb6
{[%clk 0:01:52]} 28. b5 {[%clk 0:01:09.4]} 28... Nd4 {[%clk 0:01:50.7]} 29. Bb2
{[%clk 0:01:07.1]} 29... Bf7 {[%clk 0:01:44.4]} 30. Qe3 {[%clk 0:01:05.3]} 30...
Ne6 {[%clk 0:01:40.1]} 31. Ra1 {[%clk 0:01:00.6]} 31... Ra8 {[%clk 0:01:38.8]}
32. g4 {[%clk 0:00:58.3]} 32... Rxa1 {[%clk 0:01:31.5]} 33. Bxa1 {[%clk
0:00:55.9]} 33... Ra8 {[%clk 0:01:29.6]} 34. Qd2 {[%clk 0:00:50.3]} 34... Ra3
{[%clk 0:01:18]} 35. Be2 {[%clk 0:00:48.6]} 35... h6 {[%clk 0:01:16.8]} 36. Bb2
{[%clk 0:00:47.9]} 36... Ra2 {[%clk 0:01:15.9]} 37. Qc1 {[%clk 0:00:41]} 37...
Nd4 {[%clk 0:01:11.7]} 38. Bxd4 {[%clk 0:00:33.1]} 38... Rxe2 {[%clk 0:01:11.4]}
39. Bf2 {[%clk 0:00:26.9]} 39... Qe7 {[%clk 0:01:03.4]} 40. Qc3 {[%clk
0:00:22.8]} 40... h5 {[%clk 0:00:56.7]} 41. Qd3 {[%clk 0:00:20.7]} 41... Ra2
{[%clk 0:00:47.6]} 42. Qxd6 {[%clk 0:00:20.6]} 42... Qxd6 {[%clk 0:00:31.9]} 43.
Rxd6 {[%clk 0:00:21.5]} 43... hxg4 {[%clk 0:00:32]} 44. fxg4 {[%clk 0:00:21.4]}
44... Bxc4 {[%clk 0:00:31.3]} 45. Rxb6 {[%clk 0:00:21.5]} 45... Rb2 {[%clk
0:00:28]} 46. Bxc5 {[%clk 0:00:20.3]} 46... Bxb5 {[%clk 0:00:27.3]} 47. Rb8+
{[%clk 0:00:16.8]} 47... Kf7 {[%clk 0:00:25.5]} 48. Bd4 {[%clk 0:00:17.1]} 48...
Rb4 {[%clk 0:00:21.7]} 49. Rb7+ {[%clk 0:00:15.3]} 49... Ke6 {[%clk 0:00:20.3]}
50. Bf2 {[%clk 0:00:14.9]} 50... g5 {[%clk 0:00:18.9]} 51. Rb6+ {[%clk
0:00:12.8]} 51... Kf7 {[%clk 0:00:17.7]} 52. h3 {[%clk 0:00:11.1]} 52... Rb1+
{[%clk 0:00:16.7]} 53. Kh2 {[%clk 0:00:11.4]} 53... Bd3 {[%clk 0:00:17.5]} 54.
Kg3 {[%clk 0:00:11.2]} 54... Rxb6 {[%clk 0:00:16.2]} 55. Bxb6 {[%clk 0:00:11.3]}
55... Bxe4 {[%clk 0:00:16.8]} 56. Bf2 {[%clk 0:00:11.9]} 56... Kg6 {[%clk
0:00:16.3]} 57. Be3 {[%clk 0:00:12.3]} 57... Bd5 {[%clk 0:00:16.5]} 58. Bf2
{[%clk 0:00:12.9]} 58... Kf7 {[%clk 0:00:16.7]} 59. Bg1 {[%clk 0:00:13.2]} 59...
Ke6 {[%clk 0:00:17.6]} 60. Bf2 {[%clk 0:00:13.8]} 60... Bc4 {[%clk 0:00:16.3]}
61. Bg1 {[%clk 0:00:14.2]} 61... Bf1 {[%clk 0:00:15.9]} 62. Bf2 {[%clk
0:00:14.8]} 62... Ke5 {[%clk 0:00:15.6]} 63. Bg1 {[%clk 0:00:15.1]} 63... Ke4
{[%clk 0:00:15.4]} 64. Bf2 {[%clk 0:00:15.5]} 64... Be2 {[%clk 0:00:14.8]} 65.
Bb6 {[%clk 0:00:15.9]} 65... f5 {[%clk 0:00:12.4]} 66. gxf5 {[%clk 0:00:15.1]}
66... Kxf5 {[%clk 0:00:12.4]} 67. Bd8 {[%clk 0:00:15.7]} 67... Bf1 {[%clk
0:00:11.4]} 68. Bb6 {[%clk 0:00:15.9]} 68... Be2 {[%clk 0:00:09.9]} 69. Bg1
{[%clk 0:00:16.5]} 69... Bh5 {[%clk 0:00:09.4]} 70. Bh2 {[%clk 0:00:17.4]} 70...
Be2 {[%clk 0:00:09]} 71. Bg1 {[%clk 0:00:18]} 71... Bh5 {[%clk 0:00:08.8]} 72.
Bh2 {[%clk 0:00:18.3]} 72... Bg6 {[%clk 0:00:08.7]} 73. Bg1 {[%clk 0:00:18.7]}
73... Bh5 {[%clk 0:00:09.4]} 1/2-1/2

[Event "*** Titled Tuesday Blitz"]
[Site "Chess.com"]
[Date "2020.10.27"]
[Round "5"]
[White "xamax2000"]
[Black "GM_Levan_Pantsulaia"]
[Result "1-0"]
[WhiteElo "2676"]
[BlackElo "2843"]
[TimeControl "180+1"]
[EndTime "10:57:19 PDT"]
[Termination "xamax2000 won by resignation"]

1. d4 {[%clk 0:02:59.6]} 1... Nf6 {[%clk 0:02:59.4]} 2. c4 {[%clk 0:02:59.3]}
2... c5 {[%clk 0:03:00]} 3. d5 {[%clk 0:02:59.4]} 3... e6 {[%clk 0:03:00.9]} 4.
Nc3 {[%clk 0:02:59.2]} 4... exd5 {[%clk 0:03:01.4]} 5. cxd5 {[%clk 0:03:00.1]}
5... d6 {[%clk 0:03:02]} 6. g3 {[%clk 0:03:00.7]} 6... g6 {[%clk 0:03:02.1]} 7.
Bg2 {[%clk 0:03:00.7]} 7... Bg7 {[%clk 0:03:02.5]} 8. Nf3 {[%clk 0:03:01.6]}
8... O-O {[%clk 0:03:02.8]} 9. O-O {[%clk 0:03:02.5]} 9... a6 {[%clk 0:03:02]}
10. a4 {[%clk 0:03:02.5]} 10... Nbd7 {[%clk 0:03:01.2]} 11. Bf4 {[%clk
0:03:01.5]} 11... Qe7 {[%clk 0:02:54.6]} 12. e4 {[%clk 0:03:00.9]} 12... Ng4
{[%clk 0:02:39.4]} 13. Qe2 {[%clk 0:02:51]} 13... Rb8 {[%clk 0:02:34.5]} 14. Nd2
{[%clk 0:02:46.9]} 14... Nge5 {[%clk 0:02:31.1]} 15. h3 {[%clk 0:02:43.4]} 15...
Re8 {[%clk 0:02:18.7]} 16. Be3 {[%clk 0:02:40.1]} 16... f5 {[%clk 0:02:05.2]}
17. exf5 {[%clk 0:02:33.2]} 17... gxf5 {[%clk 0:02:06.1]} 18. Rfe1 {[%clk
0:02:25.8]} 18... Ng6 {[%clk 0:01:55.9]} 19. Nc4 {[%clk 0:02:14.8]} 19... b6
{[%clk 0:01:44.9]} 20. Qc2 {[%clk 0:02:11.7]} 20... Nde5 {[%clk 0:01:39.8]} 21.
Bd2 {[%clk 0:01:45.4]} 21... Bd7 {[%clk 0:01:33.6]} 22. b3 {[%clk 0:01:39.3]}
22... Qf8 {[%clk 0:01:23.7]} 23. f4 {[%clk 0:01:35.3]} 23... Nf7 {[%clk
0:01:19.8]} 24. a5 {[%clk 0:01:28.9]} 24... b5 {[%clk 0:00:42.1]} 25. Nb6 {[%clk
0:01:28.8]} 25... Rxe1+ {[%clk 0:00:42.6]} 26. Rxe1 {[%clk 0:01:28.3]} 26... Qd8
{[%clk 0:00:43.5]} 27. Nd1 {[%clk 0:01:21.9]} 27... Rxb6 {[%clk 0:00:35.7]} 28.
axb6 {[%clk 0:01:22]} 28... Qxb6 {[%clk 0:00:36.6]} 29. Ne3 {[%clk 0:01:20.2]}
29... Nh6 {[%clk 0:00:36.8]} 30. Kh2 {[%clk 0:01:19.5]} 30... a5 {[%clk
0:00:31.6]} 31. Bc3 {[%clk 0:01:18.5]} 31... Qd8 {[%clk 0:00:16.5]} 32. Bxg7
{[%clk 0:01:17.4]} 32... Kxg7 {[%clk 0:00:17.4]} 33. Qc3+ {[%clk 0:01:17.9]}
33... Kf7 {[%clk 0:00:17.2]} 34. Bf3 {[%clk 0:01:16.1]} 34... Ng8 {[%clk
0:00:16.2]} 35. Qd3 {[%clk 0:01:10.4]} 35... N8e7 {[%clk 0:00:15.9]} 36. Bh5
{[%clk 0:01:08.7]} 36... Qb6 {[%clk 0:00:15.5]} 37. g4 {[%clk 0:01:00.2]} 37...
fxg4 {[%clk 0:00:14.7]} 38. f5 {[%clk 0:00:59.3]} 38... gxh3 {[%clk 0:00:07.4]}
39. fxg6+ {[%clk 0:00:59.2]} 39... hxg6 {[%clk 0:00:08.3]} 40. Rf1+ {[%clk
0:00:58.8]} 40... Ke8 {[%clk 0:00:08.7]} 41. Bxg6+ {[%clk 0:00:58.2]} 41... Kd8
{[%clk 0:00:09.4]} 42. Rf8+ {[%clk 0:00:39.5]} 42... Kc7 {[%clk 0:00:08.8]} 43.
Rf7 {[%clk 0:00:40]} 43... c4 {[%clk 0:00:09.3]} 44. bxc4 {[%clk 0:00:40.2]}
44... Nxg6 {[%clk 0:00:09.4]} 45. Ng4 {[%clk 0:00:18.7]} 45... Ne5 {[%clk
0:00:06.3]} 46. Nxe5 {[%clk 0:00:18.8]} 46... dxe5 {[%clk 0:00:07.2]} 47. cxb5
{[%clk 0:00:14.8]} 47... Qd6 {[%clk 0:00:07.3]} 48. Qc4+ {[%clk 0:00:14.8]}
48... Kb6 {[%clk 0:00:07.7]} 49. Kh1 {[%clk 0:00:12.1]} 49... Bxb5 {[%clk
0:00:07.6]} 50. Qe4 {[%clk 0:00:09.6]} 50... a4 {[%clk 0:00:07.3]} 51. Qe3+
{[%clk 0:00:09.7]} 51... Ka5 {[%clk 0:00:06.4]} 52. Ra7+ {[%clk 0:00:08.9]}
52... Ba6 {[%clk 0:00:06.8]} 53. Qc3+ {[%clk 0:00:05.6]} 53... Kb6 {[%clk
0:00:07.2]} 54. Qe3+ {[%clk 0:00:06.1]} 54... Kb5 {[%clk 0:00:07.6]} 55. Qe2+
{[%clk 0:00:05.5]} 55... Kb6 {[%clk 0:00:07.8]} 56. Rxa6+ {[%clk 0:00:05.4]}
56... Kc5 {[%clk 0:00:04.5]} 57. Rxd6 {[%clk 0:00:06.3]} 1-0